bitfinex/quotes_BTCUSD_20250618
["timestamp","ask_amount","ask_price","bid_price","bid_amount"]
[1750221458212,0.01961625,105430.0,105420.0,0.41724622]
[1750221458422,0.02910103,105430.0,105420.0,0.41724622]
[1750221458876,0.01961625,105430.0,105420.0,0.41724622]
[1750221460407,0.0196158,105430.0,105420.0,0.41724622]
[1750221460617,0.02910031,105430.0,105420.0,0.41724622]
[1750221462999,0.0291004,105430.0,105420.0,0.41724622]
[1750221466640,0.03858518,105430.0,105420.0,0.37294622]
[1750221469195,0.03858509,105430.0,105420.0,0.37294622]
[1750221469674,0.03858509,105430.0,105420.0,0.39604622]
[1750221469886,0.04806987,105430.0,105420.0,0.55000622]
[1750221472079,0.04807059,105430.0,105420.0,0.55000622]
[1750221474517,0.01961625,105430.0,105420.0,0.55000622]
[1750221474718,0.0196158,105430.0,105420.0,0.57140622]
[1750221474991,0.01961562,105430.0,105420.0,0.57140622]
[1750221475142,0.02909995,105430.0,105420.0,0.57140622]
[1750221478295,0.01961562,105430.0,105420.0,0.57140622]
[1750221478630,0.02910004,105430.0,105420.0,0.57140622]
[1750221481413,0.01961562,105430.0,105420.0,0.57140622]
[1750221482064,0.01013138,105430.0,105420.0,0.57140622]
[1750221482873,0.00064723,105430.0,105420.0,0.57140622]
[1750221483095,0.00064723,105430.0,105420.0,0.37788622]
[1750221483312,0.00064723,105430.0,105420.0,0.57136622]
[1750221485592,0.01013147,105430.0,105420.0,0.57136622]
[1750221486543,0.00064723,105430.0,105420.0,0.57136622]
[1750221488121,0.01013138,105430.0,105420.0,0.37788622]
[1750221488331,0.01013138,105430.0,105420.0,0.57136622]
[1750221490353,0.00064723,105430.0,105420.0,0.57136622]
[1750221491009,0.01013138,105430.0,105420.0,0.57136622]
[1750221492558,0.01961571,105430.0,105420.0,0.57136622]
[1750221492763,0.01013138,105430.0,105420.0,0.57136622]
[1750221492994,0.01961562,105430.0,105420.0,0.57136622]
[1750221493214,0.01961562,105430.0,105420.0,0.54996622]
[1750221493215,0.03858482,105430.0,105420.0,0.54996622]
[1750221493418,0.03722491,105430.0,105420.0,0.54996622]
[1750221493665,0.03722482,105430.0,105420.0,0.54996622]
[1750221493907,0.0182558,105430.0,105420.0,0.57126622]
[1750221494148,0.00877138,105430.0,105420.0,0.57126622]
[1750221494563,0.02774004,105430.0,105420.0,0.57126622]
[1750221495104,0.03722464,105430.0,105420.0,0.57126622]
[1750221495293,0.02774004,105430.0,105420.0,0.57126622]
[1750221496278,0.03722464,105430.0,105420.0,0.57126622]
[1750221496653,0.02774004,105430.0,105420.0,0.37294622]
[1750221496863,0.03722464,105430.0,105420.0,0.52686622]
[1750221497251,0.04670933,105430.0,105420.0,0.52686622]
[1750221497528,0.03722464,105430.0,105420.0,0.52686622]
[1750221498068,0.03722464,105430.0,105420.0,0.33338622]
[1750221498439,0.03722455,105430.0,105420.0,0.52686622]
[1750221499432,0.04670915,105430.0,105420.0,0.52686622]
[1750221499929,0.03722455,105430.0,105420.0,0.52686622]
[1750221503042,0.02774004,105430.0,105420.0,0.52686622]
[1750221503902,0.01825562,105430.0,105420.0,0.52686622]
[1750221505256,0.02774004,105430.0,105420.0,0.52686622]
[1750221505426,0.01825562,105430.0,105420.0,0.52686622]
[1750221506030,0.03722455,105430.0,105420.0,0.52686622]
[1750221506616,0.47194215,105440.0,105430.0,0.19918419]
[1750221506812,0.27390887,105440.0,105430.0,0.24822897]
[1750221507020,0.25118183,105440.0,105430.0,0.24822897]
[1750221507197,0.25118183,105440.0,105430.0,0.20866897]
[1750221507579,0.25118183,105440.0,105430.0,0.40210897]
[1750221508237,0.25418183,105440.0,105430.0,0.40210897]
[1750221508649,0.25618183,105440.0,105430.0,0.40210897]
[1750221508889,0.25618183,105440.0,105430.0,0.41159366]
[1750221509951,0.25618271,105440.0,105430.0,0.41159366]
[1750221510603,0.26596673,105440.0,105430.0,0.41159366]
[1750221512864,0.26596823,105440.0,105430.0,0.39262419]
[1750221513079,0.26596823,105440.0,105430.0,0.19344]
[1750221513301,0.26596823,105440.0,105430.0,0.20292496]
[1750221513769,0.26596823,105440.0,105430.0,0.39262428]
[1750221514704,0.26596823,105440.0,105430.0,0.40210915]
[1750221515636,0.24816553,105440.0,105430.0,0.40210915]
[1750221515850,0.26596867,105440.0,105430.0,0.40210915]
[1750221516053,0.26596867,105440.0,105430.0,0.41159393]
[1750221518460,0.26596867,105440.0,105430.0,0.40210915]
[1750221518659,0.2659687,105440.0,105430.0,0.40210915]
[1750221518864,0.2659687,105440.0,105430.0,0.19344]
[1750221519427,0.2659687,105440.0,105430.0,0.39262419]
[1750221519792,0.2659687,105440.0,105430.0,0.19344]
[1750221520197,0.2659687,105440.0,105430.0,0.20292496]
[1750221522007,0.2659687,105440.0,105430.0,0.40210915]
[1750221525189,0.2222687,105440.0,105430.0,0.42107862]
[1750221525860,0.20446553,105440.0,105430.0,0.43056322]
[1750221527256,0.22343338,105440.0,105430.0,0.42107826]
[1750221527494,0.22343338,105440.0,105430.0,0.43056268]
[1750221527495,0.03375133,105440.0,105430.0,0.43056268]
[1750221527710,0.03375133,105440.0,105430.0,0.43056214]
[1750221527929,0.05271828,105440.0,105430.0,0.43056214]
[1750221531047,0.06220225,105440.0,105430.0,0.43056214]
[1750221531989,0.06220306,105440.0,105430.0,0.43056214]
[1750221534022,0.08000637,105440.0,105430.0,0.43056214]
[1750221534738,0.08000641,105440.0,105430.0,0.43056214]
[1750221534969,0.26020422,105440.0,105430.0,0.42107781]
[1750221535224,0.25072061,105440.0,105430.0,0.40210879]
[1750221535481,0.27385276,105440.0,105430.0,0.1934]
[1750221535717,0.2643687,105440.0,105430.0,0.1934]
[1750221536185,0.26436835,105440.0,105430.0,0.1934]
[1750221536422,0.26436835,105440.0,105430.0,0.03956]
[1750221536649,0.26436835,105440.0,105430.0,0.1934]
[1750221537136,0.23175241,105440.0,105430.0,0.4020687]
[1750221537371,0.23175241,105440.0,105430.0,0.3925841]
[1750221541419,0.23175241,105440.0,105430.0,0.38309932]
[1750221541637,0.23175241,105440.0,105430.0,0.39258428]
[1750221541852,0.25295241,105440.0,105430.0,0.39258428]
[1750221542092,0.25295241,105440.0,105430.0,0.40206915]
[1750221542311,0.00948469,105430.0,105420.0,0.30492954]
[1750221542532,0.01896911,105430.0,105420.0,0.49828954]
[1750221542748,0.01896911,105430.0,105420.0,0.54358954]
[1750221543615,0.0294538,105430.0,105420.0,0.54358954]
[1750221543860,0.03993858,105430.0,105420.0,0.54358954]
[1750221544186,0.03993822,105430.0,105420.0,0.54358954]
[1750221545826,0.03045353,105430.0,105420.0,0.54358954]
[1750221546032,0.02096893,105430.0,105420.0,0.54358954]
[1750221546341,0.02096848,105430.0,105420.0,0.54358954]
[1750221546567,0.01148424,105430.0,105420.0,0.54358954]
[1750221546818,0.002,105430.0,105420.0,0.54358954]
[1750221547267,0.01148415,105430.0,105420.0,0.54358954]
[1750221547685,0.01148415,105430.0,105420.0,0.83468954]
[1750221548112,0.02096848,105430.0,105420.0,0.83468954]
[1750221548428,0.03045299,105430.0,105420.0,0.83468954]
[1750221548639,0.0304529,105430.0,105420.0,0.83468954]
[1750221548929,0.02096848,105430.0,105420.0,0.83468954]
[1750221549132,0.01148415,105430.0,105420.0,0.83468954]
[1750221549549,0.02096848,105430.0,105420.0,0.83468954]
[1750221549775,0.03045299,105430.0,105420.0,0.83468954]
[1750221549983,0.02096848,105430.0,105420.0,0.83468954]
[1750221550536,0.03045308,105430.0,105420.0,0.83468954]
[1750221550752,0.03045299,105430.0,105420.0,0.83468954]
[1750221557592,0.3704529,105430.0,105420.0,0.83468954]
[1750221559080,0.36096848,105430.0,105420.0,0.83468954]
[1750221560337,0.35148415,105430.0,105420.0,0.83468954]
[1750221560550,0.36096848,105430.0,105420.0,0.83468954]
[1750221560756,0.35148415,105430.0,105420.0,0.83468954]
[1750221560976,0.002,105430.0,105420.0,0.84923039]
[1750221562027,0.001,105430.0,105420.0,0.84923039]
[1750221562238,0.001,105430.0,105420.0,0.85023039]
[1750221563338,0.0474185,105440.0,105430.0,0.21815312]
[1750221563545,0.2276164,105440.0,105430.0,0.50767497]
[1750221564651,0.2286164,105440.0,105430.0,0.50767497]
[1750221564863,0.2296164,105440.0,105430.0,0.50767497]
[1750221565070,0.03993507,105440.0,105430.0,0.5171593]
[1750221566544,0.2296164,105440.0,105430.0,0.50767497]
[1750221571283,0.03993507,105440.0,105430.0,0.5171593]
[1750221575631,0.03045101,105440.0,105430.0,0.5171593]
[1750221575839,0.03993489,105440.0,105430.0,0.5171593]
[1750221576047,0.04941886,105440.0,105430.0,0.5171593]
[1750221576258,0.0494194,105440.0,105430.0,0.5171593]
[1750221576895,0.23910073,105440.0,105430.0,0.50767497]
[1750221579338,0.22961703,105440.0,105430.0,0.50767497]
[1750221580336,0.03045164,105440.0,105430.0,0.5171593]
[1750221582469,0.0399357,105440.0,105430.0,0.5171593]
[1750221583938,0.0399357,105440.0,105430.0,0.50767497]
[1750221586693,0.22961703,105440.0,105430.0,0.50767497]
[1750221589169,0.22013324,105440.0,105430.0,0.29542595]
[1750221589371,0.22013324,105440.0,105430.0,0.49807064]
[1750221589577,0.20116539,105440.0,105430.0,0.48858604]
[1750221589780,0.20116539,105440.0,105430.0,0.49807091]
[1750221592270,0.20116539,105440.0,105430.0,0.50755569]
[1750221592479,0.20116539,105440.0,105430.0,0.51704038]
[1750221596860,0.20116539,105440.0,105430.0,0.52652498]
[1750221598207,0.20116539,105440.0,105430.0,0.52652453]
[1750221598834,0.62595263,105450.0,105430.0,0.52652453]
[1750221598970,0.18968133,105440.0,105430.0,0.52666625]
[1750221600174,0.01896785,105440.0,105430.0,0.5266658]
[1750221600629,0.01996785,105440.0,105430.0,0.5266658]
[1750221600829,0.01048352,105440.0,105430.0,0.57006535]
[1750221601055,0.35996677,105440.0,105430.0,0.57006535]
[1750221601254,0.35048325,105440.0,105430.0,0.57006535]
[1750221602641,0.35996668,105440.0,105430.0,0.57006535]
[1750221602853,0.35048325,105440.0,105430.0,0.57006535]
[1750221603071,0.35996668,105440.0,105430.0,0.57006535]
[1750221603301,0.35048334,105440.0,105430.0,0.57006535]
[1750221603510,0.341,105440.0,105430.0,0.57006535]
[1750221605094,0.35048325,105440.0,105430.0,0.57006535]
[1750221606829,0.35048325,105440.0,105430.0,0.86116535]
[1750221608730,0.35996668,105440.0,105430.0,0.86116535]
[1750221608935,0.35048325,105440.0,105430.0,0.86116535]
[1750221609239,0.35996668,105440.0,105430.0,0.86116535]
[1750221612541,0.3694502,105440.0,105430.0,0.86116535]
[1750221613412,0.3789339,105440.0,105430.0,0.86116535]
[1750221614093,0.3694502,105440.0,105430.0,0.86116535]
[1750221614509,0.37893399,105440.0,105430.0,0.86116535]
[1750221614709,0.3694502,105440.0,105430.0,0.86116535]
[1750221614917,0.3789339,105440.0,105430.0,0.86116535]
[1750221615130,0.3694502,105440.0,105430.0,0.86116535]
[1750221615368,0.37888973,105440.0,105430.0,0.86116535]
[1750221616803,0.36940603,105440.0,105430.0,0.86116535]
[1750221617643,0.35992251,105440.0,105430.0,0.86116535]
[1750221618080,0.36940612,105440.0,105430.0,0.86116535]
[1750221618725,0.35992251,105440.0,105430.0,0.86116535]
[1750221618943,0.36940612,105440.0,105430.0,0.86116535]
[1750221620584,0.35992251,105440.0,105430.0,0.86116535]
[1750221620799,0.36940612,105440.0,105430.0,0.86116535]
[1750221621017,0.35992251,105440.0,105430.0,0.86116535]
[1750221621230,0.36940612,105440.0,105430.0,0.86116535]
[1750221621359,0.36940603,105440.0,105430.0,0.86116535]
[1750221626332,0.37888973,105440.0,105430.0,0.86116535]
[1750221626552,0.36940603,105440.0,105430.0,0.86116535]
[1750221627177,0.37888964,105440.0,105430.0,0.86116535]
[1750221630441,0.35992251,105440.0,105430.0,0.86116535]
[1750221632448,0.35043908,105440.0,105430.0,0.86116535]
[1750221632655,0.35992251,105440.0,105430.0,0.86116535]
[1750221633752,0.36940612,105440.0,105430.0,0.86116535]
[1750221634163,0.35992251,105440.0,105430.0,0.86116535]
[1750221636074,0.35043908,105440.0,105430.0,0.86116535]
[1750221636284,0.35992251,105440.0,105430.0,0.86116535]
[1750221636989,0.38270864,105440.0,105430.0,0.86116535]
[1750221637574,0.35043908,105440.0,105430.0,0.86116535]
[1750221637793,0.3599226,105440.0,105430.0,0.86116535]
[1750221638802,0.35043908,105440.0,105430.0,0.86116535]
[1750221639003,0.35992251,105440.0,105430.0,0.86116535]
[1750221639204,0.35043908,105440.0,105430.0,0.86116535]
[1750221639389,0.3599226,105440.0,105430.0,0.86116535]
[1750221640452,0.35992251,105440.0,105430.0,0.86116535]
[1750221641282,0.38270859,105440.0,105430.0,0.86116535]
[1750221641484,0.35992251,105440.0,105430.0,0.86116535]
[1750221644889,0.38270927,105440.0,105430.0,0.86116535]
[1750221645090,0.35992251,105440.0,105430.0,0.86116535]
[1750221645298,0.3827094,105440.0,105430.0,0.86116535]
[1750221645499,0.38270929,105440.0,105430.0,0.86116535]
[1750221645703,0.38270941,105440.0,105430.0,0.86116535]
[1750221645922,0.35992251,105440.0,105430.0,0.86116535]
[1750221646133,0.35043908,105440.0,105430.0,0.86116535]
[1750221646353,0.35992242,105440.0,105430.0,0.86116535]
[1750221646767,0.3827093,105440.0,105430.0,0.86116535]
[1750221646966,0.35992242,105440.0,105430.0,0.86116535]
[1750221647825,0.35992251,105440.0,105430.0,0.86116535]
[1750221648020,0.35043908,105440.0,105430.0,0.86116535]
[1750221648227,0.35043917,105440.0,105430.0,0.86116535]
[1750221648786,0.35043908,105440.0,105430.0,0.86116535]
[1750221650120,0.3599226,105440.0,105430.0,0.86116535]
[1750221650341,0.36940621,105440.0,105430.0,0.80808138]
[1750221650540,0.3921926,105440.0,105430.0,0.80808138]
[1750221653024,0.4016763,105440.0,105430.0,0.80808138]
[1750221653223,0.3921926,105440.0,105430.0,0.80808138]
[1750221653413,0.3599226,105440.0,105430.0,0.80808138]
[1750221653644,0.3694063,105440.0,105430.0,0.80808138]
[1750221653770,0.39219269,105440.0,105430.0,0.80808138]
[1750221653974,0.3694063,105440.0,105430.0,0.80808138]
[1750221656332,0.3599226,105440.0,105430.0,0.80808138]
[1750221656523,0.36940621,105440.0,105430.0,0.80808138]
[1750221659586,0.3599226,105440.0,105430.0,0.80808138]
[1750221661268,0.3694063,105440.0,105430.0,0.80808138]
[1750221661975,0.3599226,105440.0,105430.0,0.80808138]
[1750221663335,0.38270901,105440.0,105430.0,0.80808138]
[1750221663511,0.35992251,105440.0,105430.0,0.84878138]
[1750221663892,0.36940621,105440.0,105430.0,0.84878138]
[1750221664110,0.36940603,105440.0,105430.0,0.84878138]
[1750221665421,0.37888973,105440.0,105430.0,0.84878138]
[1750221665790,0.36940603,105440.0,105430.0,0.84878138]
[1750221665992,0.37888964,105440.0,105430.0,0.84878138]
[1750221666782,0.37888964,105440.0,105430.0,0.82798138]
[1750221667186,0.38837343,105440.0,105430.0,0.82798138]
[1750221667715,0.37888964,105440.0,105430.0,0.82798138]
[1750221668312,0.38837334,105440.0,105430.0,0.82798138]
[1750221668637,0.38837334,105440.0,105430.0,0.80808138]
[1750221671209,0.37888964,105440.0,105430.0,0.80808138]
[1750221671697,0.38837343,105440.0,105430.0,0.80808138]
[1750221672047,0.37888964,105440.0,105430.0,0.80808138]
[1750221674571,0.38837334,105440.0,105430.0,0.80808138]
[1750221675297,0.37888964,105440.0,105430.0,0.80808138]
[1750221676256,0.38837343,105440.0,105430.0,0.80808138]
[1750221676731,0.37888964,105440.0,105430.0,0.80808138]
[1750221676959,0.38837334,105440.0,105430.0,0.80808138]
[1750221677178,0.04741751,105440.0,105430.0,0.80808138]
[1750221677596,0.03793426,105440.0,105430.0,0.80808138]
[1750221677806,0.02845056,105440.0,105430.0,0.80808138]
[1750221678272,0.03793426,105440.0,105430.0,0.80808138]
[1750221680438,0.02845056,105440.0,105430.0,0.82878138]
[1750221680641,0.03793435,105440.0,105430.0,0.82878138]
[1750221680945,0.03793426,105440.0,105430.0,0.82878138]
[1750221681167,0.38741805,105440.0,105430.0,0.82878138]
[1750221681653,0.37793426,105440.0,105430.0,0.82878138]
[1750221682691,0.38741814,105440.0,105430.0,0.82878138]
[1750221682897,0.37793426,105440.0,105430.0,0.82878138]
[1750221684692,0.38741814,105440.0,105430.0,0.82878138]
[1750221685117,0.38741805,105440.0,105430.0,0.82878138]
[1750221686243,0.37793426,105440.0,105430.0,0.82878138]
[1750221688187,0.37689426,105440.0,105430.0,0.82878138]
[1750221692819,0.38637805,105440.0,105430.0,0.82878138]
[1750221693256,0.37689426,105440.0,105430.0,0.82878138]
[1750221695431,0.36741056,105440.0,105430.0,0.82878138]
[1750221695860,0.35792695,105440.0,105430.0,0.82878138]
[1750221696175,0.35792695,105440.0,105430.0,0.84868138]
[1750221696601,0.34844343,105440.0,105430.0,0.84868138]
[1750221697265,0.35792695,105440.0,105430.0,0.84868138]
[1750221697570,0.34844343,105440.0,105430.0,0.84868138]
[1750221697953,0.34,105440.0,105430.0,0.84868138]
[1750221698585,0.34948334,105440.0,105430.0,0.84868138]
[1750221699424,0.35896686,105440.0,105430.0,0.84868138]
[1750221700120,0.35896686,105440.0,105430.0,0.65572138]
[1750221700334,0.35896686,105440.0,105430.0,0.84860138]
[1750221700991,0.35896686,105440.0,105430.0,0.83911705]
[1750221701208,0.36845047,105440.0,105430.0,0.80800138]
[1750221701429,0.37793426,105440.0,105430.0,0.80800138]
[1750221701638,0.37793417,105440.0,105430.0,0.80800138]
[1750221701877,0.36845047,105440.0,105430.0,0.80800138]
[1750221703269,0.37793426,105440.0,105430.0,0.80800138]
[1750221703489,0.36845047,105440.0,105430.0,0.80800138]
[1750221705254,0.35896686,105440.0,105430.0,0.80800138]
[1750221705947,0.36845047,105440.0,105430.0,0.80800138]
[1750221706485,0.35896677,105440.0,105430.0,0.80800138]
[1750221706695,0.35896677,105440.0,105430.0,0.82860138]
[1750221706907,0.36845038,105440.0,105430.0,0.84870138]
[1750221707138,0.35896677,105440.0,105430.0,0.84870138]
[1750221707341,0.36845038,105440.0,105430.0,0.84870138]
[1750221707815,0.35896677,105440.0,105430.0,0.84870138]
[1750221708640,0.36845038,105440.0,105430.0,0.84870138]
[1750221709055,0.35896677,105440.0,105430.0,0.84870138]
[1750221710226,0.36845038,105440.0,105430.0,0.84870138]
[1750221710420,0.35896677,105440.0,105430.0,0.84870138]
[1750221710895,0.36845038,105440.0,105430.0,0.84870138]
[1750221711798,0.35896677,105440.0,105430.0,0.84870138]
[1750221712031,0.36845029,105440.0,105430.0,0.84870138]
[1750221712231,0.37793399,105440.0,105430.0,0.84870138]
[1750221712599,0.36845029,105440.0,105430.0,0.84870138]
[1750221712806,0.3779339,105440.0,105430.0,0.84870138]
[1750221713454,0.3779339,105440.0,105430.0,0.80800138]
[1750221714615,0.36845029,105440.0,105430.0,0.80800138]
[1750221714941,0.38672392,105440.0,105430.0,0.80800138]
[1750221718896,0.39620753,105440.0,105430.0,0.80800138]
[1750221719316,0.38672392,105440.0,105430.0,0.80800138]
[1750221720188,0.3772404,105440.0,105430.0,0.80800138]
[1750221721174,0.38672392,105440.0,105430.0,0.80800138]
[1750221721728,0.3772404,105440.0,105430.0,0.80800138]
[1750221721932,0.38672401,105440.0,105430.0,0.80800138]
[1750221722138,0.38672392,105440.0,105430.0,0.80800138]
[1750221722557,0.3772404,105440.0,105430.0,0.80800138]
[1750221722782,0.3772404,105440.0,105430.0,0.82880138]
[1750221723448,0.38672401,105440.0,105430.0,0.82880138]
[1750221723882,0.3772404,105440.0,105430.0,0.82880138]
[1750221725003,0.38672392,105440.0,105430.0,0.82880138]
[1750221726136,0.35827363,105440.0,105430.0,0.55930138]
[1750221726337,0.3772404,105440.0,105430.0,0.55930138]
[1750221726562,0.36775688,105440.0,105430.0,0.55930138]
[1750221726781,0.37724031,105440.0,105430.0,0.55930138]
[1750221727102,0.37724031,105440.0,105430.0,0.36642138]
[1750221727327,0.38672392,105440.0,105430.0,0.55926138]
[1750221727560,0.37724031,105440.0,105430.0,0.55926138]
[1750221728392,0.38672383,105440.0,105430.0,0.55926138]
[1750221730491,0.38672383,105440.0,105430.0,0.36642138]
[1750221730710,0.38672383,105440.0,105430.0,0.55926138]
[1750221731517,0.37724031,105440.0,105430.0,0.55926138]
[1750221733125,0.36775688,105440.0,105430.0,0.55926138]
[1750221733329,0.35827363,105440.0,105430.0,0.55926138]
[1750221735687,0.36775697,105440.0,105430.0,0.55926138]
[1750221735893,0.35827363,105440.0,105430.0,0.55926138]
[1750221737034,0.35827363,105440.0,105430.0,0.85036138]
[1750221755879,0.35655363,105440.0,105430.0,0.85036138]
[1750221757857,0.36603688,105440.0,105430.0,0.85036138]
[1750221758773,0.35655363,105440.0,105430.0,0.85036138]
[1750221764338,0.36603688,105440.0,105430.0,0.85036138]
[1750221769939,0.35655363,105440.0,105430.0,0.85036138]
[1750221770378,0.36603688,105440.0,105430.0,0.85036138]
[1750221771313,0.35655363,105440.0,105430.0,0.85036138]
[1750221773746,0.31368389,105470.0,105460.0,0.00948208]
[1750221773747,0.09632403,105470.0,105460.0,0.00948208]
[1750221773950,0.12303951,105470.0,105460.0,0.41181124]
[1750221774152,0.13252069,105470.0,105460.0,0.41181124]
[1750221774380,0.44524015,105470.0,105460.0,0.43077459]
[1750221774587,0.10964033,105470.0,105460.0,0.43077459]
[1750221774807,0.4529984,105470.0,105460.0,0.43077459]
[1750221775016,0.11577926,105470.0,105460.0,0.43077459]
[1750221775218,0.41359831,105470.0,105460.0,0.43077459]
[1750221775470,0.43637926,105470.0,105460.0,0.43077459]
[1750221775679,0.4230794,105470.0,105460.0,0.43077459]
[1750221775881,0.43256067,105470.0,105460.0,0.41181124]
[1750221776316,0.4230794,105470.0,105460.0,0.42129296]
[1750221776898,0.43256067,105470.0,105460.0,0.42129296]
[1750221777102,0.43256067,105470.0,105460.0,0.41181124]
[1750221777438,0.3945814,105470.0,105460.0,0.52701635]
[1750221777839,0.38510031,105470.0,105460.0,0.52701635]
[1750221778273,0.37561931,105470.0,105460.0,0.52701635]
[1750221778417,0.38510031,105470.0,105460.0,0.52701635]
[1750221778832,0.3945814,105470.0,105460.0,0.52701635]
[1750221779035,0.38510031,105470.0,105460.0,0.52701635]
[1750221780241,0.3945814,105470.0,105460.0,0.52701635]
[1750221780984,0.38510031,105470.0,105460.0,0.52701635]
[1750221781208,0.36613866,105470.0,105460.0,0.56561635]
[1750221782082,0.37561948,105470.0,105460.0,0.56561635]
[1750221783059,0.36613866,105470.0,105460.0,0.56561635]
[1750221783481,0.35665793,105470.0,105460.0,0.56561635]
[1750221783705,0.0033,105480.0,105470.0,0.25527038]
[1750221783927,0.0033,105480.0,105470.0,0.35151214]
[1750221784401,0.3433,105480.0,105470.0,0.35151214]
[1750221785069,0.35277966,105480.0,105470.0,0.35165427]
[1750221785289,0.36225941,105480.0,105470.0,0.54743427]
[1750221785499,0.38656552,105480.0,105470.0,0.54743427]
[1750221786168,0.37708559,105480.0,105470.0,0.54743427]
[1750221786374,0.38656552,105480.0,105470.0,0.54743427]
[1750221787007,0.38656552,105480.0,105470.0,0.55143427]
[1750221787216,0.37708559,105480.0,105470.0,0.55143427]
[1750221787639,0.36760584,105480.0,105470.0,0.55143427]
[1750221788724,0.35812618,105480.0,105470.0,0.55143427]
[1750221788934,0.36760584,105480.0,105470.0,0.55143427]
[1750221789145,0.35812618,105480.0,105470.0,0.55143427]
[1750221789572,0.36760593,105480.0,105470.0,0.55143427]
[1750221789781,0.35812618,105480.0,105470.0,0.55143427]
[1750221790444,0.36760593,105480.0,105470.0,0.55143427]
[1750221791017,0.36760584,105480.0,105470.0,0.55143427]
[1750221791349,0.36760584,105480.0,105470.0,0.55443427]
[1750221791783,0.35812618,105480.0,105470.0,0.55443427]
[1750221792020,0.36760593,105480.0,105470.0,0.55443427]
[1750221792233,0.36760584,105480.0,105470.0,0.55443427]
[1750221792448,0.35812618,105480.0,105470.0,0.55443427]
[1750221792655,0.36760584,105480.0,105470.0,0.55443427]
[1750221793293,0.36760584,105480.0,105470.0,0.84553427]
[1750221793962,0.35812618,105480.0,105470.0,0.84553427]
[1750221794199,0.36760584,105480.0,105470.0,0.84553427]
[1750221794434,0.35812618,105480.0,105470.0,0.84553427]
[1750221794657,0.36760584,105480.0,105470.0,0.84553427]
[1750221794891,0.35812618,105480.0,105470.0,0.84553427]
[1750221796194,0.01482618,105480.0,105470.0,0.84553427]
[1750221796622,1.04348844,105490.0,105480.0,0.21804973]
[1750221796852,1.05296783,105490.0,105480.0,0.31429149]
[1750221797972,1.04348844,105490.0,105480.0,0.31629149]
[1750221798201,1.04348844,105490.0,105480.0,0.31829149]
[1750221798668,1.04348844,105490.0,105480.0,0.33719149]
[1750221798892,1.04348835,105490.0,105480.0,0.33719149]
[1750221799387,1.24255917,105490.0,105480.0,0.30881165]
[1750221799627,1.25203874,105490.0,105480.0,0.31829167]
[1750221799834,1.25203874,105490.0,105480.0,0.3277716]
[1750221799997,1.26665815,105490.0,105480.0,0.3277716]
[1750221800207,1.59717921,105490.0,105480.0,0.3277716]
[1750221801600,1.40758778,105490.0,105480.0,0.3277716]
[1750221802789,1.59717921,105490.0,105480.0,0.3277716]
[1750221804017,1.38862882,105490.0,105480.0,0.33725144]
[1750221805262,1.3981083,105490.0,105480.0,0.30881174]
[1750221805463,1.39810821,105490.0,105480.0,0.31829167]
[1750221805672,1.39810821,105490.0,105480.0,0.30881174]
[1750221805866,1.39810821,105490.0,105480.0,0.32777169]
[1750221806301,1.42659921,105490.0,105480.0,0.32777169]
[1750221806503,1.42659921,105490.0,105480.0,0.31829176]
[1750221806756,1.4588139,105490.0,105480.0,0.31829176]
[1750221806939,1.4588139,105490.0,105480.0,0.32777169]
[1750221807310,1.4588139,105490.0,105480.0,0.31829176]
[1750221807738,1.44933442,105490.0,105480.0,0.32777169]
[1750221807953,1.44933442,105490.0,105480.0,0.31829176]
[1750221808804,1.44933442,105490.0,105480.0,0.32777169]
[1750221809636,1.44933442,105490.0,105480.0,0.31829176]
[1750221809884,1.44933442,105490.0,105480.0,0.32777169]
[1750221810568,1.44933442,105490.0,105480.0,0.31829176]
[1750221811034,1.44933442,105490.0,105480.0,0.32777178]
[1750221811243,1.44933442,105490.0,105480.0,0.3372518]
[1750221811803,1.44933442,105490.0,105480.0,0.32777187]
[1750221812689,1.4588139,105490.0,105480.0,0.32777187]
[1750221812931,1.4588139,105490.0,105480.0,0.3372518]
[1750221813163,1.44933442,105490.0,105480.0,0.32777142]
[1750221813622,1.43985503,105490.0,105480.0,0.32777142]
[1750221813846,1.43985503,105490.0,105480.0,0.37665126]
[1750221815421,1.43966543,105490.0,105480.0,0.37665126]
[1750221815645,1.44914473,105490.0,105480.0,0.37665126]
[1750221815859,1.4491441,105490.0,105480.0,0.37665126]
[1750221816111,1.45862349,105490.0,105480.0,0.37665126]
[1750221816294,1.4491441,105490.0,105480.0,0.37665126]
[1750221816512,1.4586234,105490.0,105480.0,0.37665126]
[1750221817408,1.46810279,105490.0,105480.0,0.37665126]
[1750221817843,1.46810279,105490.0,105480.0,0.34697142]
[1750221818076,1.46810279,105490.0,105480.0,0.36777142]
[1750221818320,1.4681036,105490.0,105480.0,0.36777142]
[1750221818549,1.4681036,105490.0,105480.0,0.35829149]
[1750221818774,1.4681036,105490.0,105480.0,0.36777142]
[1750221819310,1.45862403,105490.0,105480.0,0.36777142]
[1750221819540,1.45862403,105490.0,105480.0,0.37725126]
[1750221819769,1.46810351,105490.0,105480.0,0.35829149]
[1750221820676,1.46810351,105490.0,105480.0,0.34881147]
[1750221820867,1.45862448,105490.0,105480.0,0.34881147]
[1750221821121,1.46810405,105490.0,105480.0,0.35829149]
[1750221821631,1.46810405,105490.0,105480.0,0.34881147]
[1750221821837,1.46810405,105490.0,105480.0,0.35829149]
[1750221822798,1.63873706,105490.0,105480.0,0.34881183]
[1750221823003,1.63873706,105490.0,105480.0,0.35829203]
[1750221824079,1.63873706,105490.0,105480.0,0.35829212]
[1750221824283,1.63873706,105490.0,105480.0,0.31829212]
[1750221824510,1.63873706,105490.0,105480.0,0.51269212]
[1750221824907,1.63873706,105490.0,105480.0,0.52217223]
[1750221825281,1.44914563,105490.0,105480.0,0.52217223]
[1750221825689,1.44914563,105490.0,105480.0,0.53165225]
[1750221825932,1.44914563,105490.0,105480.0,0.53165171]
[1750221827641,1.43966606,105490.0,105480.0,0.53165171]
[1750221827852,1.43966606,105490.0,105480.0,0.52217178]
[1750221828078,1.4396657,105490.0,105480.0,0.53165162]
[1750221828314,1.44914518,105490.0,105480.0,0.55135162]
[1750221828523,1.42065418,105490.0,105480.0,0.55135162]
[1750221828794,1.42061004,105490.0,105480.0,0.55135162]
[1750221829011,1.41113056,105490.0,105480.0,0.55135162]
[1750221829223,1.41113056,105490.0,105480.0,0.57025162]
[1750221830502,1.42061013,105490.0,105480.0,0.56077178]
[1750221830710,1.42061013,105490.0,105480.0,0.57025171]
[1750221831127,1.41113056,105490.0,105480.0,0.57025171]
[1750221831324,1.41113056,105490.0,105480.0,0.57025126]
[1750221832356,1.41113002,105490.0,105480.0,0.57025126]
[1750221832565,1.42060941,105490.0,105480.0,0.57025126]
[1750221833185,1.43008889,105490.0,105480.0,0.57025126]
[1750221833620,1.42060932,105490.0,105480.0,0.57025126]
[1750221833833,1.41113002,105490.0,105480.0,0.57025126]
[1750221834054,1.42060932,105490.0,105480.0,0.57025126]
[1750221834473,1.41113002,105490.0,105480.0,0.57025126]
[1750221834674,1.40165108,105490.0,105480.0,0.86185126]
[1750221834961,1.41112984,105490.0,105480.0,0.86185126]
[1750221835314,1.41112984,105490.0,105480.0,0.85185126]
[1750221836383,1.42060905,105490.0,105480.0,0.85185126]